fUSD/lending_fUSD_20240514
["ID","MTS","AMOUNT","RATE_DAILY","PERIOD"]
[326992700,1715692233456,-2717.60286237,0.0001169,2]
[326992701,1715692233466,-2717.60286237,0.0001169,2]
[326992702,1715692233476,-2717.60286237,0.0001169,2]
[326992703,1715692233485,-2717.60286237,0.0001169,2]
[326992704,1715692233495,-2717.60286237,0.0001169,2]
[326992705,1715692233504,-2717.60286237,0.0001169,2]
[326992706,1715692233513,-2717.60286237,0.0001169,2]
[326992707,1715692233523,-2717.60286237,0.0001169,2]
[326992708,1715692233532,-2717.60286237,0.0001169,2]
[326992709,1715692233541,-2717.60286237,0.0001169,2]
[326992710,1715692233550,-2717.60286237,0.0001169,2]
[326992711,1715692233561,-2717.60286237,0.0001169,2]
[326992712,1715692233570,-190854.0682,0.000117,2]
[326992713,1715692233580,-479.13,0.000117,2]
[326992714,1715692233590,-928.0,0.00012014,2]
[326992715,1715692233600,-375.12325086,0.0001224,2]
[326992716,1715692233609,-166.78278404,0.0001233,2]
[326992717,1715692233622,-117356.60349852,0.00012338,2]
[326992718,1715692233631,-152769.92959963,0.0001234,2]
[326992719,1715692233640,-10000.0,0.0001234,2]
[326992720,1715692233649,-220.770378,0.00012358,2]
[326992721,1715692233658,-171.28,0.00012485,2]
[326992722,1715692233668,-375.12325086,0.00012508,2]
[326992723,1715692233678,-177.55,0.00012587,2]
[326992724,1715692233687,-100000.0,0.00012663,2]
[326992725,1715692233697,-1563.60941232,0.00012664,2]
[326992726,1715692233709,-500.0,0.00012776,2]
[326992727,1715692233719,-1000.0,0.00012776,2]
[326992728,1715692233729,-10000.0,0.00012776,2]
[326992729,1715692233738,-173.54433881,0.00012776,2]
[326992730,1715692233747,-1407.94206703,0.00012776,2]
[326992731,1715692233756,-375.12325086,0.00012776,2]
[326992732,1715692233766,-2582.36350735,0.00012785,2]
[326992733,1715692233775,-1407.94206702,0.00012787,2]
[326992734,1715692233787,-1407.94206702,0.00012799,2]
[326992735,1715692233796,-1407.94206702,0.0001281,2]
[326992736,1715692233806,-1407.94206702,0.00012821,2]
[326992737,1715692233815,-1407.94206702,0.00012832,2]
[326992738,1715692233824,-1407.94206702,0.00012844,2]
[326992739,1715692233836,-1407.94206702,0.00012855,2]
[326992740,1715692233846,-150.03,0.0001286,2]
[326992741,1715692233855,-1407.94206702,0.00012866,2]
[326992742,1715692233868,-512.74283902,0.00012868,2]
[326992743,1715692233877,-1535.34738607,0.00012868,2]
[326992744,1715692233886,-169.29662533,0.00012869,2]
[326992745,1715692233895,-1256.86129027,0.0001287,2]
[326992746,1715692233905,-965.88462889,0.0001287,2]
[326992747,1715692233914,-1997.82151721,0.00012874,2]
[326992748,1715692233924,-837.03904286,0.00012874,2]
[326992749,1715692233934,-159.98075539,0.00012874,2]
[326992750,1715692233943,-1403.32813573,0.00012874,2]
[326992751,1715692233953,-194.36466099,0.00012874,2]
[326992752,1715692233963,-205.83004919,0.00012874,2]
[326992753,1715692233972,-155.12382905,0.00012874,2]
[326992754,1715692233982,-616.51901983,0.00012874,2]
[326992755,1715692233992,-2358.56522313,0.00012874,2]
[326992756,1715692234002,-226.76655076,0.00012874,2]
[326992757,1715692234013,-200.86464643,0.00012874,2]
[326992758,1715692234023,-268.13175477,0.00012874,2]
[326992759,1715692234032,-155.0,0.00012874,2]
[326992760,1715692234041,-517.86261004,0.00012874,2]
[326992761,1715692234051,-242.00430088,0.00012874,2]
[326992762,1715692234061,-189.61661566,0.00012874,2]
[326992763,1715692234071,-155.12532813,0.00012874,2]
[326992764,1715692234080,-174.87662818,0.00012874,2]
[326992765,1715692234089,-367.00964115,0.00012874,2]
[326992766,1715692234099,-155.0,0.00012874,2]
[326992767,1715692234108,-195.96696143,0.00012874,2]
[326992768,1715692234122,-1264.0340538,0.00012874,2]
[326992769,1715692234132,-1523.88922511,0.00012874,2]
[326992770,1715692234141,-155.0,0.00012874,2]
[326992771,1715692234150,-155.9132,0.00012874,2]
[326992772,1715692234159,-159.15312055,0.00012874,2]
[326992773,1715692234168,-660.07063343,0.00012874,2]
[326992774,1715692234177,-155.0,0.00012874,2]
[326992775,1715692234187,-156.63582093,0.00012874,2]
[326992776,1715692234196,-676.07047739,0.00012874,2]
[326992777,1715692234205,-306.92143567,0.00012874,2]
[326992778,1715692234214,-155.55226398,0.00012874,2]
[326992779,1715692234224,-6136.91024807,0.00012874,2]
[326992780,1715692234233,-438.55520697,0.00012874,2]
[326992781,1715692234242,-261.54819671,0.00012874,2]
[326992782,1715692234252,-318.59270315,0.00012874,2]
[326992783,1715692234261,-155.51216996,0.00012874,2]
[326992784,1715692234270,-155.0,0.00012874,2]
[326992785,1715692234280,-155.3047756,0.00012874,2]
[326992786,1715692234289,-273.46105239,0.00012874,2]
[326992787,1715692234299,-3087.47726091,0.00012874,2]
[326992788,1715692234308,-253.9256815,0.00012874,2]
[326992789,1715692234317,-200.89414529,0.00012874,2]
[326992790,1715692234327,-559.99216416,0.00012874,2]
[326992791,1715692234337,-165.0,0.00012874,2]
[326992792,1715692234347,-1244.2402654,0.00012874,2]
[326992793,1715692234356,-379.42839443,0.00012875,2]
[326992794,1715692234368,-473.24239097,0.00012875,2]
[326992795,1715692234377,-449.99100308,0.00012875,2]
[326992796,1715692234386,-1088.88354224,0.00012875,2]
[326992797,1715692234395,-534.77769943,0.00012875,2]
[326992798,1715692234404,-231372.35126669,0.00012875,2]
[326992799,1715692234449,-2717.60286237,0.0001169,2]
[326992800,1715692234458,-6755.20006977,0.00012875,2]
[326992801,1715692234469,-373.00390906,0.00012875,2]
[326992802,1715692234481,-5800.0,0.00012875,2]
[326992803,1715692234492,-12925.41264448,0.00012875,2]
[326992804,1715692234502,-500.0,0.00012876,2]
[326992805,1715692234510,-458.83471237,0.00012876,2]
[326992806,1715692234519,-447.20142354,0.00012876,2]
[326992807,1715692234529,-519.26467345,0.00012876,2]
[326992808,1715692234538,-500.0,0.00012876,2]
[326992809,1715692234547,-500.10171731,0.00012876,2]
[326992810,1715692234556,-503.30290785,0.00012876,2]
[326992811,1715692234565,-501.94909851,0.00012876,2]
[326992812,1715692234575,-507.47138315,0.00012876,2]
[326992813,1715692234584,-558.85793712,0.00012876,2]
[326992814,1715692234593,-501.75725544,0.00012876,2]
[326992815,1715692234602,-500.0,0.00012876,2]
[326992816,1715692234614,-500.0,0.00012876,2]
[326992817,1715692234623,-500.0,0.00012876,2]
[326992818,1715692234632,-513.20091429,0.00012876,2]
[326992819,1715692234641,-500.0,0.00012876,2]
[326992820,1715692234650,-500.0,0.00012876,2]
[326992821,1715692234660,-510.61503694,0.00012876,2]
[326992822,1715692234669,-503.54265623,0.00012876,2]
[326992823,1715692234679,-515.7853503,0.00012876,2]
[326992824,1715692234688,-620.32,0.00012876,2]
[326992825,1715692234699,-510.36276023,0.00012876,2]
[326992826,1715692234711,-506.3798578,0.00012876,2]
[326992827,1715692234720,-514.06517614,0.00012876,2]
[326992828,1715692234730,-500.0,0.00012876,2]
[326992829,1715692234740,-500.0,0.00012876,2]
[326992830,1715692234751,-503.17099424,0.00012876,2]
[326992831,1715692234760,-500.0,0.00012876,2]
[326992832,1715692234770,-168.74,0.00012876,2]
[326992833,1715692234779,-401.69883913,0.00012876,2]
[326992834,1715692234788,-554.19,0.00012876,2]
[326992835,1715692234798,-500.0,0.00012876,2]
[326992836,1715692234808,-209.48830826,0.00012876,2]
[326992837,1715692234817,-569.43,0.00012876,2]
[326992838,1715692234827,-500.0,0.00012876,2]
[326992839,1715692234838,-329.07,0.00012876,2]
[326992840,1715692234848,-500.0,0.00012876,2]
[326992841,1715692234859,-500.0,0.00012876,2]
[326992842,1715692234871,-500.0,0.00012876,2]
[326992843,1715692234880,-377.72,0.00012876,2]
[326992844,1715692234889,-518.80344559,0.00012876,2]
[326992845,1715692234899,-500.0,0.00012876,2]
[326992846,1715692234908,-500.0,0.00012876,2]
[326992847,1715692234918,-500.0,0.00012876,2]
[326992848,1715692234929,-500.0,0.00012876,2]
[326992849,1715692234939,-199.48262384,0.00012876,2]
[326992850,1715692234949,-519.27,0.00012876,2]
[326992851,1715692234959,-500.0,0.00012876,2]
[326992852,1715692234970,-521.44091417,0.00012876,2]
[326992853,1715692234980,-500.0,0.00012876,2]
[326992854,1715692234989,-309.59,0.00012876,2]
[326992855,1715692234999,-642.1022745,0.00012876,2]
[326992856,1715692235009,-535.99,0.00012876,2]
[326992857,1715692235018,-512.5876465,0.00012876,2]
[326992858,1715692235028,-349.36,0.00012876,2]
[326992859,1715692235038,-508.47,0.00012876,2]
[326992860,1715692235047,-175.75740478,0.00012876,2]
[326992861,1715692235057,-500.0,0.00012876,2]
[326992862,1715692235066,-500.21829973,0.00012876,2]
[326992863,1715692235075,-1478.13,0.00012876,2]
[326992864,1715692235085,-1478.13,0.00012876,2]
[326992865,1715692235095,-1478.13,0.00012876,2]
[326992866,1715692235104,-1478.13,0.00012876,2]
[326992867,1715692235115,-1478.13,0.00012876,2]
[326992868,1715692235124,-1478.13,0.00012876,2]
[326992869,1715692235133,-1478.13,0.00012876,2]
[326992870,1715692235143,-1478.13,0.00012876,2]
[326992871,1715692235152,-1478.13,0.00012876,2]
[326992872,1715692235162,-1478.13,0.00012876,2]
[326992873,1715692235172,-1478.13,0.00012876,2]
[326992874,1715692235181,-1478.13,0.00012876,2]
[326992875,1715692235190,-1478.13,0.00012876,2]
[326992876,1715692235199,-644.71,0.00012876,2]
[326992877,1715692235209,-500.0,0.00012876,2]
[326992878,1715692235218,-644.71,0.00012876,2]
[326992879,1715692235227,-644.71,0.00012876,2]
[326992880,1715692235238,-644.71,0.00012876,2]
[326992881,1715692235248,-644.71,0.00012876,2]
[326992882,1715692235257,-644.71,0.00012876,2]
[326992883,1715692235267,-644.71,0.00012876,2]
[326992884,1715692235276,-644.71,0.00012876,2]
[326992885,1715692235285,-644.71,0.00012876,2]
[326992886,1715692235295,-644.71,0.00012876,2]
[326992887,1715692235305,-644.71,0.00012876,2]
[326992888,1715692235315,-644.71,0.00012876,2]
[326992889,1715692235325,-644.71,0.00012876,2]
[326992890,1715692235335,-500.0,0.00012876,2]
[326992891,1715692235345,-565.99876174,0.00012876,2]
[326992892,1715692235355,-520.95989459,0.00012876,2]
[326992893,1715692235367,-500.0,0.00012876,2]
[326992894,1715692235376,-331.95,0.00012876,2]
[326992895,1715692235386,-500.0,0.00012876,2]
[326992896,1715692235395,-500.0,0.00012876,2]
[326992897,1715692235405,-500.0,0.00012876,2]
[326992898,1715692235415,-500.0,0.00012876,2]
[326992899,1715692235424,-500.0,0.00012876,2]
[326992900,1715692235434,-500.0,0.00012876,2]
[326992901,1715692235445,-500.0,0.00012876,2]
[326992902,1715692235454,-500.0,0.00012876,2]
[326992903,1715692235463,-500.0,0.00012876,2]
[326992904,1715692235473,-500.0,0.00012876,2]
[326992905,1715692235482,-500.0,0.00012876,2]
[326992906,1715692235491,-327.78479418,0.00012876,2]
[326992907,1715692235501,-342.83356441,0.00012876,2]
[326992908,1715692235511,-500.0,0.00012876,2]
[326992909,1715692235520,-500.0,0.00012876,2]
[326992910,1715692235530,-500.0,0.00012876,2]
[326992911,1715692235539,-500.0,0.00012876,2]
[326992912,1715692235548,-1258.4,0.00012876,2]
[326992913,1715692235558,-500.0,0.00012876,2]
[326992914,1715692235567,-1258.4,0.00012876,2]
[326992915,1715692235577,-1258.4,0.00012876,2]
[326992916,1715692235586,-1258.4,0.00012876,2]
[326992917,1715692235596,-500.0,0.00012876,2]
[326992918,1715692235606,-1258.4,0.00012876,2]
[326992919,1715692235619,-500.0,0.00012876,2]
[326992920,1715692235628,-500.0,0.00012876,2]
[326992921,1715692235637,-503.68132719,0.00012876,2]
[326992922,1715692235647,-500.0,0.00012876,2]
[326992923,1715692235656,-500.0,0.00012876,2]
[326992924,1715692235665,-500.0,0.00012876,2]
[326992925,1715692235675,-500.0,0.00012876,2]
[326992926,1715692235685,-500.0,0.00012876,2]
[326992927,1715692235696,-500.0,0.00012876,2]
[326992928,1715692235706,-500.0,0.00012876,2]
[326992929,1715692235715,-549.52203561,0.00012876,2]
[326992930,1715692235728,-500.0,0.00012876,2]
[326992931,1715692235737,-524.23855494,0.00012876,2]
[326992932,1715692235746,-500.0,0.00012876,2]
[326992933,1715692235756,-500.0,0.00012876,2]
[326992934,1715692235766,-500.0,0.00012876,2]
[326992935,1715692235776,-500.0,0.00012876,2]
[326992936,1715692235785,-500.0,0.00012876,2]
[326992937,1715692235798,-500.0,0.00012876,2]
[326992938,1715692235808,-500.0,0.00012876,2]
[326992939,1715692235818,-500.0,0.00012876,2]
[326992940,1715692235828,-500.0,0.00012876,2]
[326992941,1715692235839,-500.0,0.00012876,2]
[326992942,1715692235848,-500.0,0.00012876,2]
[326992943,1715692235858,-500.0,0.00012876,2]
[326992944,1715692235870,-500.0,0.00012876,2]
[326992945,1715692235879,-500.0,0.00012876,2]
[326992946,1715692235889,-506.46122529,0.00012876,2]
[326992947,1715692235898,-500.0,0.00012876,2]
[326992948,1715692235908,-500.0,0.00012876,2]
[326992949,1715692235917,-500.0,0.00012876,2]
[326992950,1715692235926,-508.00798695,0.00012876,2]
[326992951,1715692235938,-526.76862357,0.00012876,2]
[326992952,1715692235947,-475.88370909,0.00012876,2]
[326992953,1715692235957,-500.0,0.00012876,2]
[326992954,1715692235967,-500.0,0.00012876,2]
[326992955,1715692235977,-500.0,0.00012876,2]
[326992956,1715692235986,-500.0,0.00012876,2]
[326992957,1715692235996,-500.0,0.00012876,2]
[326992958,1715692236006,-506.6191235,0.00012876,2]
[326992959,1715692236015,-506.91458528,0.00012876,2]
[326992960,1715692236024,-500.0,0.00012876,2]
[326992961,1715692236033,-500.0,0.00012876,2]
[326992962,1715692236043,-500.0,0.00012876,2]
[326992963,1715692236052,-500.0,0.00012876,2]
[326992964,1715692236062,-500.0,0.00012876,2]
[326992965,1715692236072,-509.06492272,0.00012876,2]
[326992966,1715692236082,-500.0,0.00012876,2]
[326992967,1715692236092,-500.0,0.00012876,2]
[326992968,1715692236102,-500.0,0.00012876,2]
[326992969,1715692236114,-500.0,0.00012876,2]
[326992970,1715692236124,-500.0,0.00012876,2]
[326992971,1715692236134,-506.56238722,0.00012876,2]
[326992972,1715692236143,-500.0,0.00012876,2]
[326992973,1715692236153,-500.0,0.00012876,2]
[326992974,1715692236162,-500.0,0.00012876,2]
[326992975,1715692236172,-500.0,0.00012876,2]
[326992976,1715692236181,-509.38833419,0.00012876,2]
[326992977,1715692236190,-500.0,0.00012876,2]
[326992978,1715692236199,-500.0,0.00012876,2]
[326992979,1715692236209,-500.0,0.00012876,2]
[326992980,1715692236219,-500.0,0.00012876,2]
[326992981,1715692236230,-500.0,0.00012876,2]
[326992982,1715692236240,-500.0,0.00012876,2]
[326992983,1715692236250,-500.0,0.00012876,2]
[326992984,1715692236260,-384.42,0.00012876,2]
[326992985,1715692236270,-119.85664945,0.00012876,2]
[326992986,1715692236305,-259.94301548,0.00012876,2]
[326992987,1715692236317,-127.55205498,0.00012876,2]
[326992988,1715692236327,-500.0,0.00012876,2]
[326992989,1715692236336,-500.0,0.00012876,2]
[326992990,1715692236346,-500.0,0.00012876,2]
[326992991,1715692236356,-500.0,0.00012876,2]
[326992992,1715692236371,-500.0,0.00012876,2]
[326992993,1715692236380,-500.0,0.00012876,2]
[326992994,1715692236390,-500.0,0.00012876,2]
[326992995,1715692236398,-500.0,0.00012876,2]
[326992996,1715692236406,-500.0,0.00012876,2]
[326992997,1715692236414,-507.33431741,0.00012876,2]
[326992998,1715692236422,-500.0,0.00012876,2]
[326992999,1715692236430,-500.0,0.00012876,2]
[326993000,1715692236438,-521.63490361,0.00012876,2]
[326993001,1715692236446,-500.0,0.00012876,2]
[326993002,1715692236630,-500.0,0.00012876,2]
[326993003,1715692236642,-500.0,0.00012876,2]
[326993004,1715692236652,-500.0,0.00012876,2]
[326993005,1715692236662,-500.0,0.00012876,2]
[326993006,1715692236672,-500.0,0.00012876,2]
[326993007,1715692236681,-500.0,0.00012876,2]
[326993008,1715692236691,-500.0,0.00012876,2]
[326993009,1715692236699,-500.0,0.00012876,2]
[326993010,1715692236710,-500.0,0.00012876,2]
[326993011,1715692236721,-500.0,0.00012876,2]
[326993012,1715692236731,-500.0,0.00012876,2]
[326993013,1715692236742,-500.0,0.00012876,2]
[326993014,1715692236752,-500.0,0.00012876,2]
[326993015,1715692236762,-500.0,0.00012876,2]
[326993016,1715692236772,-507.44327746,0.00012876,2]
[326993017,1715692236782,-500.0,0.00012876,2]
[326993018,1715692236794,-500.0,0.00012876,2]
[326993019,1715692236804,-500.0,0.00012876,2]
[326993020,1715692236814,-500.0,0.00012876,2]
[326993021,1715692236824,-500.0,0.00012876,2]
[326993022,1715692236835,-508.7753704,0.00012876,2]
[326993023,1715692236845,-500.0,0.00012876,2]
[326993024,1715692236855,-500.0,0.00012876,2]
[326993025,1715692236870,-500.0,0.00012876,2]
[326993026,1715692236880,-500.0,0.00012876,2]
[326993027,1715692236890,-500.0,0.00012876,2]
[326993028,1715692236901,-500.0,0.00012876,2]
[326993029,1715692236911,-500.0,0.00012876,2]
[326993030,1715692236922,-500.0,0.00012876,2]
[326993031,1715692236932,-500.0,0.00012876,2]
[326993032,1715692236941,-500.0,0.00012876,2]
[326993033,1715692236951,-500.0,0.00012876,2]
[326993034,1715692236961,-500.0,0.00012876,2]
[326993035,1715692236972,-500.0,0.00012876,2]
[326993036,1715692236982,-500.0,0.00012876,2]
[326993037,1715692236992,-506.82644763,0.00012876,2]
[326993038,1715692237002,-523.04715483,0.00012876,2]
[326993039,1715692237012,-151.0,0.00012876,2]
[326993040,1715692237021,-500.0,0.00012876,2]
[326993041,1715692237031,-500.0,0.00012876,2]
[326993042,1715692237041,-500.0,0.00012876,2]
[326993043,1715692237050,-500.0,0.00012876,2]
[326993044,1715692237060,-500.0,0.00012876,2]
[326993045,1715692237070,-500.0,0.00012876,2]
[326993046,1715692237079,-500.0,0.00012876,2]
[326993047,1715692237089,-500.0,0.00012876,2]
[326993048,1715692237099,-500.0,0.00012876,2]
[326993049,1715692237108,-500.0,0.00012876,2]
[326993050,1715692237122,-500.0,0.00012876,2]
[326993051,1715692237131,-500.0,0.00012876,2]
[326993052,1715692237141,-500.0,0.00012876,2]
[326993053,1715692237150,-502.83430674,0.00012876,2]
[326993054,1715692237160,-500.0,0.00012876,2]
[326993055,1715692237169,-545.76035515,0.00012876,2]
[326993056,1715692237179,-500.0,0.00012876,2]
[326993057,1715692237188,-500.0,0.00012876,2]
[326993058,1715692237197,-500.0,0.00012876,2]
[326993059,1715692237207,-500.0,0.00012876,2]
[326993060,1715692237216,-500.0,0.00012876,2]
[326993061,1715692237225,-500.0,0.00012876,2]
[326993062,1715692237235,-500.0,0.00012876,2]
[326993063,1715692237244,-517.79046169,0.00012876,2]
[326993064,1715692237254,-500.0,0.00012876,2]
[326993065,1715692237263,-500.0,0.00012876,2]
[326993066,1715692237273,-500.0,0.00012876,2]
[326993067,1715692237282,-500.0,0.00012876,2]
[326993068,1715692237291,-500.0,0.00012876,2]
[326993069,1715692237300,-500.0,0.00012876,2]
[326993070,1715692237310,-500.0,0.00012876,2]
[326993071,1715692237319,-500.0,0.00012876,2]
[326993072,1715692237328,-500.0,0.00012876,2]
[326993073,1715692237338,-500.0,0.00012876,2]
[326993074,1715692237347,-500.0,0.00012876,2]
[326993075,1715692237356,-500.0,0.00012876,2]
[326993076,1715692237369,-500.0,0.00012876,2]
[326993077,1715692237378,-500.0,0.00012876,2]
[326993078,1715692237388,-500.0,0.00012876,2]
[326993079,1715692237397,-500.0,0.00012876,2]
[326993080,1715692237406,-500.0,0.00012876,2]
[326993081,1715692237416,-508.14681681,0.00012876,2]
[326993082,1715692237425,-500.0,0.00012876,2]
[326993083,1715692237435,-500.0,0.00012876,2]
[326993084,1715692237444,-500.0,0.00012876,2]
[326993086,1715692237454,-500.0,0.00012876,2]
[326993087,1715692237463,-578.04,0.00012876,2]
[326993088,1715692237473,-500.0,0.00012876,2]
[326993089,1715692237482,-500.0,0.00012876,2]
[326993090,1715692237491,-505.74711942,0.00012876,2]
[326993091,1715692237502,-500.0,0.00012876,2]
[326993092,1715692237511,-500.0,0.00012876,2]
[326993093,1715692237520,-770.83,0.00012876,2]
[326993094,1715692237529,-202.14,0.00012876,2]
[326993095,1715692237538,-770.83,0.00012876,2]
[326993096,1715692237548,-500.0,0.00012876,2]
[326993097,1715692237557,-770.83,0.00012876,2]
[326993098,1715692237566,-500.0,0.00012876,2]
[326993099,1715692237576,-151.0,0.00012876,2]
[326993100,1715692237585,-770.83,0.00012876,2]
[326993101,1715692237595,-500.0,0.00012876,2]
[326993102,1715692237604,-770.83,0.00012876,2]
[326993103,1715692237615,-500.0,0.00012876,2]
[326993104,1715692237624,-530.45304787,0.00012876,2]
[326993106,1715692237634,-246.22365178,0.00012876,2]
[326993108,1715692237643,-500.0,0.00012876,2]
[326993110,1715692237652,-500.0,0.00012876,2]
[326993111,1715692237662,-500.0,0.00012876,2]
[326993112,1715692237671,-500.0,0.00012876,2]
[326993113,1715692237681,-500.0,0.00012876,2]
[326993114,1715692237690,-151.0,0.00012876,2]
[326993115,1715692237699,-520.08276908,0.00012876,2]
[326993116,1715692237709,-500.0,0.00012876,2]
[326993117,1715692237722,-500.0,0.00012876,2]
[326993118,1715692237732,-507.62122426,0.00012876,2]
[326993119,1715692237741,-500.0,0.00012876,2]
[326993120,1715692237751,-500.0,0.00012876,2]
[326993121,1715692237760,-184.78,0.00012876,2]
[326993122,1715692237770,-245.74469309,0.00012876,2]
[326993123,1715692237826,-2717.60286237,0.0001169,2]
[326993124,1715692237835,-254.25530691,0.00012876,2]
[326993125,1715692237843,-500.0,0.00012876,2]
[326993126,1715692237851,-500.0,0.00012876,2]
[326993127,1715692237860,-500.0,0.00012876,2]
[326993128,1715692237870,-500.0,0.00012876,2]
[326993129,1715692237879,-500.0,0.00012876,2]
[326993130,1715692237888,-534.27288216,0.00012876,2]
[326993131,1715692237896,-323.42874165,0.00012876,2]
[326993132,1715692237908,-176.57125835,0.00012876,2]
[326993133,1715692237916,-500.0,0.00012876,2]
[326993134,1715692237924,-399.38369355,0.00012876,2]
[326993138,1715692238823,-19530.68,0.00010346,2]
[326993139,1715692238833,-2717.60286237,0.0001169,2]
[326993140,1715692238842,-223.67840436,0.0001169,2]
[326993141,1715692238853,-769.96443153,0.0001169,2]
[326993142,1715692238866,-311.184893,0.0001169,2]
[326993143,1715692238878,-1412.77513348,0.0001169,2]
[326993144,1715692238887,-730.99910419,0.0001169,2]
[326993145,1715692238898,-323.69840361,0.0001169,2]
[326993146,1715692238951,-1662.90535457,0.0001169,2]
[326993147,1715692238960,-2717.60286237,0.0001169,2]
[326993148,1715692238970,-2717.60286237,0.0001169,2]
[326993149,1715692238979,-2717.60286237,0.0001169,2]
[326993150,1715692238988,-2717.60286237,0.0001169,2]
[326993151,1715692238998,-2717.60286237,0.0001169,2]
[326993152,1715692239007,-2717.60286237,0.0001169,2]
[326993153,1715692239016,-2717.60286237,0.0001169,2]
[326993154,1715692239026,-2717.60286237,0.0001169,2]
[326993155,1715692239036,-2717.60286237,0.0001169,2]
[326993156,1715692239045,-2717.60286237,0.0001169,2]
[326993157,1715692239055,-2717.60286237,0.0001169,2]
[326993158,1715692239065,-2717.60286237,0.0001169,2]
[326993159,1715692239075,-2717.60286237,0.0001169,2]
[326993160,1715692239085,-2717.60286237,0.0001169,2]
[326993161,1715692239095,-2717.60286237,0.0001169,2]
[326993162,1715692239104,-2717.60286237,0.0001169,2]
[326993163,1715692239114,-2717.60286237,0.0001169,2]
[326993164,1715692239124,-2717.60286237,0.0001169,2]
[326993165,1715692239133,-2717.60286237,0.0001169,2]
[326993166,1715692239143,-2717.60286237,0.0001169,2]
[326993167,1715692239152,-2717.60286237,0.0001169,2]
[326993168,1715692239161,-2717.60286237,0.0001169,2]
[326993169,1715692239171,-2717.60286237,0.0001169,2]
[326993170,1715692239181,-2717.60286237,0.0001169,2]
[326993171,1715692239191,-2717.60286237,0.0001169,2]
[326993172,1715692239202,-2717.60286237,0.0001169,2]
[326993173,1715692239212,-2717.60286237,0.0001169,2]
[326993174,1715692239221,-1656.93388619,0.00012341,2]
[326993175,1715692239231,-514.0,0.00012876,2]
[326993176,1715692239240,-100.61630645,0.00012876,2]
[326993177,1715692239250,-500.0,0.00012876,2]
[326993178,1715692239259,-500.0,0.00012876,2]
[326993179,1715692239269,-500.0,0.00012876,2]
[326993180,1715692239278,-500.0,0.00012876,2]
[326993181,1715692239288,-500.0,0.00012876,2]
[326993182,1715692239297,-500.0,0.00012876,2]
[326993183,1715692239306,-500.0,0.00012876,2]
[326993184,1715692239315,-500.0,0.00012876,2]
[326993185,1715692239324,-500.0,0.00012876,2]
[326993186,1715692239334,-500.0,0.00012876,2]
[326993187,1715692239343,-500.0,0.00012876,2]
[326993188,1715692239354,-629.0,0.00012876,2]
[326993189,1715692239367,-500.0,0.00012876,2]
[326993190,1715692239377,-500.0,0.00012876,2]
[326993192,1715692239388,-207.18,0.00012876,2]
[326993193,1715692239397,-533.48862798,0.00012876,2]
[326993194,1715692239407,-500.0,0.00012876,2]
[326993195,1715692239417,-500.0,0.00012876,2]
[326993196,1715692239427,-500.0,0.00012876,2]
[326993197,1715692239436,-500.0,0.00012876,2]
[326993198,1715692239445,-500.0,0.00012876,2]
[326993199,1715692239456,-500.0,0.00012876,2]
[326993200,1715692239465,-500.0,0.00012876,2]
[326993201,1715692239475,-500.0,0.00012876,2]
[326993202,1715692239484,-500.0,0.00012876,2]
[326993203,1715692239494,-500.0,0.00012876,2]
[326993204,1715692239504,-500.0,0.00012876,2]
[326993205,1715692239513,-500.0,0.00012876,2]
[326993206,1715692239523,-204.166222,0.00012876,2]
[326993208,1715692239533,-500.0,0.00012876,2]